Workbook

Sheet Sheet1
A1: Identifiant | B1: Produit | C1: Prix Unitaire | D1: Quantité | E1: Revenu Total | F1: Date Vente | G1: Vendeur | H1: Région
A2: V_0001 | B2: Disque Dur | C2: 13300 | D2: 16 | E2: =Tableau1[[#This Row],[Prix Unitaire]]*Tableau1[[#This Row],[Quantité]] -> 212800 | F2: 2024-08-06 | G2: Loukmane | H2: Niamey
A3: V_0002 | B3: Disque Dur | C3: 14600 | D3: 11 | E3: =Tableau1[[#This Row],[Prix Unitaire]]*Tableau1[[#This Row],[Quantité]] -> 160600 | F3: 2024-04-17 | G3: Fatima | H3: Zinder
A4: V_0003 | B4: Tablette | C4: 67000 | D4: 18 | E4: =Tableau1[[#This Row],[Prix Unitaire]]*Tableau1[[#This Row],[Quantité]] -> 1206000 | F4: 2024-07-19 | G4: Ghousmane | H4: Maradi
A5: V_0004 | B5: Clavier | C5: 8900 | D5: 12 | E5: =Tableau1[[#This Row],[Prix Unitaire]]*Tableau1[[#This Row],[Quantité]] -> 106800 | F5: 2024-02-24 | G5: Daouda | H5: Niamey
A6: V_0005 | B6: Casque Audio | C6: 20600 | D6: 16 | E6: =Tableau1[[#This Row],[Prix Unitaire]]*Tableau1[[#This Row],[Quantité]] -> 329600 | F6: 2024-06-11 | G6: Fatima | H6: Dosso
A7: V_0006 | B7: Imprimante | C7: 22600 | D7: 9 | E7: =Tableau1[[#This Row],[Prix Unitaire]]*Tableau1[[#This Row],[Quantité]] -> 203400 | F7: 2024-03-27 | G7: Maiga | H7: Diffa
A8: V_0007 | B8: Disque Dur | C8: 12600 | D8: 8 | E8: =Tableau1[[#This Row],[Prix Unitaire]]*Tableau1[[#This Row],[Quantité]] -> 100800 | F8: 2024-08-04 | G8: Djamila | H8: Maradi
A9: V_0008 | B9: Casque Audio | C9: 24700 | D9: 10 | E9: =Tableau1[[#This Row],[Prix Unitaire]]*Tableau1[[#This Row],[Quantité]] -> 247000 | F9: 2024-08-05 | G9: Loukmane | H9: Tahoua
A10: V_0009 | B10: Imprimante | C10: 45300 | D10: 16 | E10: =Tableau1[[#This Row],[Prix Unitaire]]*Tableau1[[#This Row],[Quantité]] -> 724800 | F10: 2024-04-29 | G10: Sanda | H10: Agadez
A11: V_0010 | B11: Clavier | C11: 8100 | D11: 12 | E11: =Tableau1[[#This Row],[Prix Unitaire]]*Tableau1[[#This Row],[Quantité]] -> 97200 | F11: 2024-04-24 | G11: Balkissa | H11: Niamey
A12: V_0011 | B12: Disque Dur | C12: 12000 | D12: 10 | E12: =Tableau1[[#This Row],[Prix Unitaire]]*Tableau1[[#This Row],[Quantité]] -> 120000 | F12: 2024-03-16 | G12: Djamila | H12: Zinder
A13: V_0012 | B13: Smartphone | C13: 88700 | D13: 18 | E13: =Tableau1[[#This Row],[Prix Unitaire]]*Tableau1[[#This Row],[Quantité]] -> 1596600 | F13: 2024-01-21 | G13: Sanda | H13: Maradi
A14: V_0013 | B14: Souris | C14: 3500 | D14: 12 | E14: =Tableau1[[#This Row],[Prix Unitaire]]*Tableau1[[#This Row],[Quantité]] -> 42000 | F14: 2024-08-09 | G14: Loukmane | H14: Niamey
A15: V_0014 | B15: Tablette | C15: 49700 | D15: 2 | E15: =Tableau1[[#This Row],[Prix Unitaire]]*Tableau1[[#This Row],[Quantité]] -> 99400 | F15: 2024-02-01 | G15: Fatima | H15: Dosso
A16: V_0015 | B16: Casque Audio | C16: 29400 | D16: 3 | E16: =Tableau1[[#This Row],[Prix Unitaire]]*Tableau1[[#This Row],[Quantité]] -> 88200 | F16: 2024-01-23 | G16: Ghousmane | H16: Diffa
A17: V_0016 | B17: Clavier | C17: 7600 | D17: 9 | E17: =Tableau1[[#This Row],[Prix Unitaire]]*Tableau1[[#This Row],[Quantité]] -> 68400 | F17: 2024-03-06 | G17: Daouda | H17: Maradi
A18: V_0017 | B18: Écran | C18: 20900 | D18: 7 | E18: =Tableau1[[#This Row],[Prix Unitaire]]*Tableau1[[#This Row],[Quantité]] -> 146300 | F18: 2024-06-15 | G18: Fatima | H18: Tahoua
A19: V_0018 | B19: Disque Dur | C19: 11900 | D19: 18 | E19: =Tableau1[[#This Row],[Prix Unitaire]]*Tableau1[[#This Row],[Quantité]] -> 214200 | F19: 2024-07-26 | G19: Maiga | H19: Agadez
A20: V_0019 | B20: Casque Audio | C20: 8500 | D20: 4 | E20: =Tableau1[[#This Row],[Prix Unitaire]]*Tableau1[[#This Row],[Quantité]] -> 34000 | F20: 2024-01-02 | G20: Djamila | H20: Niamey
A21: V_0020 | B21: Chargeur | C21: 4700 | D21: 8 | E21: =Tableau1[[#This Row],[Prix Unitaire]]*Tableau1[[#This Row],[Quantité]] -> 37600 | F21: 2024-02-09 | G21: Loukmane | H21: Zinder
A22: V_0021 | B22: Imprimante | C22: 12500 | D22: 17 | E22: =Tableau1[[#This Row],[Prix Unitaire]]*Tableau1[[#This Row],[Quantité]] -> 212500 | F22: 2024-01-26 | G22: Sanda | H22: Maradi
A23: V_0022 | B23: Imprimante | C23: 42600 | D23: 8 | E23: =Tableau1[[#This Row],[Prix Unitaire]]*Tableau1[[#This Row],[Quantité]] -> 340800 | F23: 2024-06-17 | G23: Balkissa | H23: Niamey
A24: V_0023 | B24: Ordinateur | C24: 60200 | D24: 14 | E24: =Tableau1[[#This Row],[Prix Unitaire]]*Tableau1[[#This Row],[Quantité]] -> 842800 | F24: 2024-03-14 | G24: Djamila | H24: Dosso
A25: V_0024 | B25: Clavier | C25: 8000 | D25: 4 | E25: =Tableau1[[#This Row],[Prix Unitaire]]*Tableau1[[#This Row],[Quantité]] -> 32000 | F25: 2024-02-20 | G25: Sanda | H25: Diffa
A26: V_0025 | B26: Tablette | C26: 20500 | D26: 18 | E26: =Tableau1[[#This Row],[Prix Unitaire]]*Tableau1[[#This Row],[Quantité]] -> 369000 | F26: 2024-01-15 | G26: Loukmane | H26: Maradi
A27: V_0026 | B27: Tablette | C27: 61600 | D27: 16 | E27: =Tableau1[[#This Row],[Prix Unitaire]]*Tableau1[[#This Row],[Quantité]] -> 985600 | F27: 2024-01-19 | G27: Fatima | H27: Tahoua
A28: V_0027 | B28: Écran | C28: 20200 | D28: 10 | E28: =Tableau1[[#This Row],[Prix Unitaire]]*Tableau1[[#This Row],[Quantité]] -> 202000 | F28: 2024-06-21 | G28: Ghousmane | H28: Agadez
A29: V_0028 | B29: Clavier | C29: 5600 | D29: 2 | E29: =Tableau1[[#This Row],[Prix Unitaire]]*Tableau1[[#This Row],[Quantité]] -> 11200 | F29: 2024-02-29 | G29: Daouda | H29: Niamey
A30: V_0029 | B30: Smartphone | C30: 96700 | D30: 19 | E30: =Tableau1[[#This Row],[Prix Unitaire]]*Tableau1[[#This Row],[Quantité]] -> 1837300 | F30: 2024-07-21 | G30: Fatima | H30: Zinder
A31: V_0030 | B31: Imprimante | C31: 37300 | D31: 2 | E31: =Tableau1[[#This Row],[Prix Unitaire]]*Tableau1[[#This Row],[Quantité]] -> 74600 | F31: 2024-02-10 | G31: Maiga | H31: Maradi
A32: V_0031 | B32: Tablette | C32: 62700 | D32: 6 | E32: =Tableau1[[#This Row],[Prix Unitaire]]*Tableau1[[#This Row],[Quantité]] -> 376200 | F32: 2024-04-12 | G32: Djamila | H32: Niamey
A33: V_0032 | B33: Ordinateur | C33: 135600 | D33: 13 | E33: =Tableau1[[#This Row],[Prix Unitaire]]*Tableau1[[#This Row],[Quantité]] -> 1762800 | F33: 2024-01-16 | G33: Loukmane | H33: Dosso
A34: V_0033 | B34: Écran | C34: 19500 | D34: 10 | E34: =Tableau1[[#This Row],[Prix Unitaire]]*Tableau1[[#This Row],[Quantité]] -> 195000 | F34: 2024-01-02 | G34: Sanda | H34: Diffa
A35: V_0034 | B35: Ordinateur | C35: 50900 | D35: 10 | E35: =Tableau1[[#This Row],[Prix Unitaire]]*Tableau1[[#This Row],[Quantité]] -> 509000 | F35: 2024-07-17 | G35: Balkissa | H35: Maradi
A36: V_0035 | B36: Chargeur | C36: 4800 | D36: 4 | E36: =Tableau1[[#This Row],[Prix Unitaire]]*Tableau1[[#This Row],[Quantité]] -> 19200 | F36: 2024-04-24 | G36: Djamila | H36: Tahoua
A37: V_0036 | B37: Clavier | C37: 5600 | D37: 15 | E37: =Tableau1[[#This Row],[Prix Unitaire]]*Tableau1[[#This Row],[Quantité]] -> 84000 | F37: 2024-04-22 | G37: Sanda | H37: Agadez
A38: V_0037 | B38: Disque Dur | C38: 18400 | D38: 16 | E38: =Tableau1[[#This Row],[Prix Unitaire]]*Tableau1[[#This Row],[Quantité]] -> 294400 | F38: 2024-01-04 | G38: Loukmane | H38: Niamey
A39: V_0038 | B39: Tablette | C39: 71600 | D39: 15 | E39: =Tableau1[[#This Row],[Prix Unitaire]]*Tableau1[[#This Row],[Quantité]] -> 1074000 | F39: 2024-05-18 | G39: Fatima | H39: Zinder
A40: V_0039 | B40: Casque Audio | C40: 9900 | D40: 4 | E40: =Tableau1[[#This Row],[Prix Unitaire]]*Tableau1[[#This Row],[Quantité]] -> 39600 | F40: 2024-03-12 | G40: Ghousmane | H40: Maradi
A41: V_0040 | B41: Clavier | C41: 4000 | D41: 15 | E41: =Tableau1[[#This Row],[Prix Unitaire]]*Tableau1[[#This Row],[Quantité]] -> 60000 | F41: 2024-07-04 | G41: Daouda | H41: Niamey
A42: V_0041 | B42: Casque Audio | C42: 23300 | D42: 6 | E42: =Tableau1[[#This Row],[Prix Unitaire]]*Tableau1[[#This Row],[Quantité]] -> 139800 | F42: 2024-01-23 | G42: Fatima | H42: Dosso
A43: V_0042 | B43: Ordinateur | C43: 125400 | D43: 11 | E43: =Tableau1[[#This Row],[Prix Unitaire]]*Tableau1[[#This Row],[Quantité]] -> 1379400 | F43: 2024-06-19 | G43: Maiga | H43: Diffa
A44: V_0043 | B44: Casque Audio | C44: 19500 | D44: 7 | E44: =Tableau1[[#This Row],[Prix Unitaire]]*Tableau1[[#This Row],[Quantité]] -> 136500 | F44: 2024-01-12 | G44: Djamila | H44: Maradi
A45: V_0044 | B45: Tablette | C45: 61500 | D45: 14 | E45: =Tableau1[[#This Row],[Prix Unitaire]]*Tableau1[[#This Row],[Quantité]] -> 861000 | F45: 2024-01-25 | G45: Loukmane | H45: Tahoua
A46: V_0045 | B46: Disque Dur | C46: 13300 | D46: 3 | E46: =Tableau1[[#This Row],[Prix Unitaire]]*Tableau1[[#This Row],[Quantité]] -> 39900 | F46: 2024-05-11 | G46: Sanda | H46: Agadez
A47: V_0046 | B47: Souris | C47: 1600 | D47: 6 | E47: =Tableau1[[#This Row],[Prix Unitaire]]*Tableau1[[#This Row],[Quantité]] -> 9600 | F47: 2024-05-14 | G47: Balkissa | H47: Niamey
A48: V_0047 | B48: Tablette | C48: 68800 | D48: 11 | E48: =Tableau1[[#This Row],[Prix Unitaire]]*Tableau1[[#This Row],[Quantité]] -> 756800 | F48: 2024-03-01 | G48: Djamila | H48: Zinder
A49: V_0048 | B49: Imprimante | C49: 10300 | D49: 9 | E49: =Tableau1[[#This Row],[Prix Unitaire]]*Tableau1[[#This Row],[Quantité]] -> 92700 | F49: 2024-05-08 | G49: Sanda | H49: Maradi
A50: V_0049 | B50: Souris | C50: 2500 | D50: 15 | E50: =Tableau1[[#This Row],[Prix Unitaire]]*Tableau1[[#This Row],[Quantité]] -> 37500 | F50: 2024-06-05 | G50: Loukmane | H50: Niamey
A51: V_0050 | B51: Casque Audio | C51: 29400 | D51: 11 | E51: =Tableau1[[#This Row],[Prix Unitaire]]*Tableau1[[#This Row],[Quantité]] -> 323400 | F51: 2024-07-12 | G51: Fatima | H51: Dosso
A52: V_0051 | B52: Casque Audio | C52: 19900 | D52: 19 | E52: =Tableau1[[#This Row],[Prix Unitaire]]*Tableau1[[#This Row],[Quantité]] -> 378100 | F52: 2024-02-09 | G52: Ghousmane | H52: Diffa
A53: V_0052 | B53: Ordinateur | C53: 76700 | D53: 12 | E53: =Tableau1[[#This Row],[Prix Unitaire]]*Tableau1[[#This Row],[Quantité]] -> 920400 | F53: 2024-02-05 | G53: Daouda | H53: Maradi
A54: V_0053 | B54: Imprimante | C54: 13100 | D54: 4 | E54: =Tableau1[[#This Row],[Prix Unitaire]]*Tableau1[[#This Row],[Quantité]] -> 52400 | F54: 2024-01-22 | G54: Fatima | H54: Tahoua
A55: V_0054 | B55: Écran | C55: 25700 | D55: 6 | E55: =Tableau1[[#This Row],[Prix Unitaire]]*Tableau1[[#This Row],[Quantité]] -> 154200 | F55: 2024-05-21 | G55: Maiga | H55: Agadez
A56: V_0055 | B56: Souris | C56: 4200 | D56: 10 | E56: =Tableau1[[#This Row],[Prix Unitaire]]*Tableau1[[#This Row],[Quantité]] -> 42000 | F56: 2024-05-12 | G56: Djamila | H56: Niamey
A57: V_0056 | B57: Smartphone | C57: 95400 | D57: 10 | E57: =Tableau1[[#This Row],[Prix Unitaire]]*Tableau1[[#This Row],[Quantité]] -> 954000 | F57: 2024-01-18 | G57: Loukmane | H57: Zinder
A58: V_0057 | B58: Clavier | C58: 9800 | D58: 8 | E58: =Tableau1[[#This Row],[Prix Unitaire]]*Tableau1[[#This Row],[Quantité]] -> 78400 | F58: 2024-03-17 | G58: Sanda | H58: Maradi
A59: V_0058 | B59: Imprimante | C59: 16800 | D59: 16 | E59: =Tableau1[[#This Row],[Prix Unitaire]]*Tableau1[[#This Row],[Quantité]] -> 268800 | F59: 2024-02-11 | G59: Balkissa | H59: Niamey
A60: V_0059 | B60: Tablette | C60: 66500 | D60: 20 | E60: =Tableau1[[#This Row],[Prix Unitaire]]*Tableau1[[#This Row],[Quantité]] -> 1330000 | F60: 2024-06-23 | G60: Djamila | H60: Dosso
A61: V_0060 | B61: Clavier | C61: 7300 | D61: 18 | E61: =Tableau1[[#This Row],[Prix Unitaire]]*Tableau1[[#This Row],[Quantité]] -> 131400 | F61: 2024-08-02 | G61: Sanda | H61: Diffa
A62: V_0061 | B62: Écran | C62: 37500 | D62: 7 | E62: =Tableau1[[#This Row],[Prix Unitaire]]*Tableau1[[#This Row],[Quantité]] -> 262500 | F62: 2024-08-12 | G62: Loukmane | H62: Maradi
A63: V_0062 | B63: Imprimante | C63: 44800 | D63: 20 | E63: =Tableau1[[#This Row],[Prix Unitaire]]*Tableau1[[#This Row],[Quantité]] -> 896000 | F63: 2024-07-14 | G63: Fatima | H63: Tahoua
A64: V_0063 | B64: Smartphone | C64: 83800 | D64: 15 | E64: =Tableau1[[#This Row],[Prix Unitaire]]*Tableau1[[#This Row],[Quantité]] -> 1257000 | F64: 2024-06-03 | G64: Ghousmane | H64: Agadez
A65: V_0064 | B65: Disque Dur | C65: 14200 | D65: 3 | E65: =Tableau1[[#This Row],[Prix Unitaire]]*Tableau1[[#This Row],[Quantité]] -> 42600 | F65: 2024-06-09 | G65: Daouda | H65: Niamey
A66: V_0065 | B66: Chargeur | C66: 1700 | D66: 2 | E66: =Tableau1[[#This Row],[Prix Unitaire]]*Tableau1[[#This Row],[Quantité]] -> 3400 | F66: 2024-03-19 | G66: Fatima | H66: Zinder
A67: V_0066 | B67: Disque Dur | C67: 17900 | D67: 7 | E67: =Tableau1[[#This Row],[Prix Unitaire]]*Tableau1[[#This Row],[Quantité]] -> 125300 | F67: 2024-02-21 | G67: Maiga | H67: Maradi
A68: V_0067 | B68: Chargeur | C68: 4400 | D68: 5 | E68: =Tableau1[[#This Row],[Prix Unitaire]]*Tableau1[[#This Row],[Quantité]] -> 22000 | F68: 2024-02-14 | G68: Djamila | H68: Niamey
A69: V_0068 | B69: Tablette | C69: 53500 | D69: 17 | E69: =Tableau1[[#This Row],[Prix Unitaire]]*Tableau1[[#This Row],[Quantité]] -> 909500 | F69: 2024-06-11 | G69: Loukmane | H69: Dosso
A70: V_0069 | B70: Écran | C70: 15900 | D70: 7 | E70: =Tableau1[[#This Row],[Prix Unitaire]]*Tableau1[[#This Row],[Quantité]] -> 111300 | F70: 2024-05-27 | G70: Sanda | H70: Diffa
A71: V_0070 | B71: Chargeur | C71: 4100 | D71: 3 | E71: =Tableau1[[#This Row],[Prix Unitaire]]*Tableau1[[#This Row],[Quantité]] -> 12300 | F71: 2024-03-03 | G71: Balkissa | H71: Maradi
A72: V_0071 | B72: Disque Dur | C72: 16400 | D72: 2 | E72: =Tableau1[[#This Row],[Prix Unitaire]]*Tableau1[[#This Row],[Quantité]] -> 32800 | F72: 2024-07-29 | G72: Djamila | H72: Tahoua
A73: V_0072 | B73: Écran | C73: 16700 | D73: 17 | E73: =Tableau1[[#This Row],[Prix Unitaire]]*Tableau1[[#This Row],[Quantité]] -> 283900 | F73: 2024-04-02 | G73: Sanda | H73: Agadez
A74: V_0073 | B74: Souris | C74: 3900 | D74: 19 | E74: =Tableau1[[#This Row],[Prix Unitaire]]*Tableau1[[#This Row],[Quantité]] -> 74100 | F74: 2024-08-02 | G74: Loukmane | H74: Niamey
A75: V_0074 | B75: Ordinateur | C75: 107200 | D75: 15 | E75: =Tableau1[[#This Row],[Prix Unitaire]]*Tableau1[[#This Row],[Quantité]] -> 1608000 | F75: 2024-06-21 | G75: Fatima | H75: Zinder
A76: V_0075 | B76: Casque Audio | C76: 23500 | D76: 1 | E76: =Tableau1[[#This Row],[Prix Unitaire]]*Tableau1[[#This Row],[Quantité]] -> 23500 | F76: 2024-08-16 | G76: Ghousmane | H76: Maradi
A77: V_0076 | B77: Souris | C77: 2600 | D77: 1 | E77: =Tableau1[[#This Row],[Prix Unitaire]]*Tableau1[[#This Row],[Quantité]] -> 2600 | F77: 2024-06-23 | G77: Daouda | H77: Niamey
A78: V_0077 | B78: Imprimante | C78: 39600 | D78: 3 | E78: =Tableau1[[#This Row],[Prix Unitaire]]*Tableau1[[#This Row],[Quantité]] -> 118800 | F78: 2024-07-18 | G78: Fatima | H78: Dosso
A79: V_0078 | B79: Ordinateur | C79: 93300 | D79: 12 | E79: =Tableau1[[#This Row],[Prix Unitaire]]*Tableau1[[#This Row],[Quantité]] -> 1119600 | F79: 2024-02-20 | G79: Maiga | H79: Diffa
A80: V_0079 | B80: Smartphone | C80: 85400 | D80: 2 | E80: =Tableau1[[#This Row],[Prix Unitaire]]*Tableau1[[#This Row],[Quantité]] -> 170800 | F80: 2024-03-01 | G80: Djamila | H80: Maradi
A81: V_0080 | B81: Smartphone | C81: 78300 | D81: 2 | E81: =Tableau1[[#This Row],[Prix Unitaire]]*Tableau1[[#This Row],[Quantité]] -> 156600 | F81: 2024-04-26 | G81: Loukmane | H81: Tahoua
A82: V_0081 | B82: Casque Audio | C82: 15400 | D82: 6 | E82: =Tableau1[[#This Row],[Prix Unitaire]]*Tableau1[[#This Row],[Quantité]] -> 92400 | F82: 2024-03-26 | G82: Sanda | H82: Agadez
A83: V_0082 | B83: Tablette | C83: 63000 | D83: 12 | E83: =Tableau1[[#This Row],[Prix Unitaire]]*Tableau1[[#This Row],[Quantité]] -> 756000 | F83: 2024-07-29 | G83: Balkissa | H83: Niamey
A84: V_0083 | B84: Souris | C84: 3800 | D84: 13 | E84: =Tableau1[[#This Row],[Prix Unitaire]]*Tableau1[[#This Row],[Quantité]] -> 49400 | F84: 2024-05-08 | G84: Djamila | H84: Zinder
A85: V_0084 | B85: Souris | C85: 1500 | D85: 18 | E85: =Tableau1[[#This Row],[Prix Unitaire]]*Tableau1[[#This Row],[Quantité]] -> 27000 | F85: 2024-07-25 | G85: Sanda | H85: Maradi
A86: V_0085 | B86: Tablette | C86: 55600 | D86: 4 | E86: =Tableau1[[#This Row],[Prix Unitaire]]*Tableau1[[#This Row],[Quantité]] -> 222400 | F86: 2024-04-03 | G86: Loukmane | H86: Niamey
A87: V_0086 | B87: Tablette | C87: 75000 | D87: 13 | E87: =Tableau1[[#This Row],[Prix Unitaire]]*Tableau1[[#This Row],[Quantité]] -> 975000 | F87: 2024-01-10 | G87: Fatima | H87: Dosso
A88: V_0087 | B88: Disque Dur | C88: 8200 | D88: 8 | E88: =Tableau1[[#This Row],[Prix Unitaire]]*Tableau1[[#This Row],[Quantité]] -> 65600 | F88: 2024-03-15 | G88: Ghousmane | H88: Diffa
A89: V_0088 | B89: Ordinateur | C89: 127400 | D89: 1 | E89: =Tableau1[[#This Row],[Prix Unitaire]]*Tableau1[[#This Row],[Quantité]] -> 127400 | F89: 2024-07-27 | G89: Daouda | H89: Maradi
A90: V_0089 | B90: Casque Audio | C90: 16800 | D90: 18 | E90: =Tableau1[[#This Row],[Prix Unitaire]]*Tableau1[[#This Row],[Quantité]] -> 302400 | F90: 2024-03-23 | G90: Fatima | H90: Tahoua
A91: V_0090 | B91: Souris | C91: 4400 | D91: 13 | E91: =Tableau1[[#This Row],[Prix Unitaire]]*Tableau1[[#This Row],[Quantité]] -> 57200 | F91: 2024-01-29 | G91: Maiga | H91: Agadez
A92: V_0091 | B92: Imprimante | C92: 22600 | D92: 15 | E92: =Tableau1[[#This Row],[Prix Unitaire]]*Tableau1[[#This Row],[Quantité]] -> 339000 | F92: 2024-02-03 | G92: Djamila | H92: Niamey
A93: V_0092 | B93: Clavier | C93: 3900 | D93: 9 | E93: =Tableau1[[#This Row],[Prix Unitaire]]*Tableau1[[#This Row],[Quantité]] -> 35100 | F93: 2024-01-28 | G93: Loukmane | H93: Zinder
A94: V_0093 | B94: Imprimante | C94: 47100 | D94: 4 | E94: =Tableau1[[#This Row],[Prix Unitaire]]*Tableau1[[#This Row],[Quantité]] -> 188400 | F94: 2024-06-17 | G94: Sanda | H94: Maradi
A95: V_0094 | B95: Ordinateur | C95: 132800 | D95: 14 | E95: =Tableau1[[#This Row],[Prix Unitaire]]*Tableau1[[#This Row],[Quantité]] -> 1859200 | F95: 2024-08-15 | G95: Balkissa | H95: Niamey
A96: V_0095 | B96: Chargeur | C96: 1100 | D96: 8 | E96: =Tableau1[[#This Row],[Prix Unitaire]]*Tableau1[[#This Row],[Quantité]] -> 8800 | F96: 2024-04-27 | G96: Djamila | H96: Dosso
A97: V_0096 | B97: Imprimante | C97: 13400 | D97: 4 | E97: =Tableau1[[#This Row],[Prix Unitaire]]*Tableau1[[#This Row],[Quantité]] -> 53600 | F97: 2024-07-03 | G97: Sanda | H97: Diffa
A98: V_0097 | B98: Chargeur | C98: 1200 | D98: 15 | E98: =Tableau1[[#This Row],[Prix Unitaire]]*Tableau1[[#This Row],[Quantité]] -> 18000 | F98: 2024-05-31 | G98: Loukmane | H98: Maradi
A99: V_0098 | B99: Chargeur | C99: 1300 | D99: 8 | E99: =Tableau1[[#This Row],[Prix Unitaire]]*Tableau1[[#This Row],[Quantité]] -> 10400 | F99: 2024-05-24 | G99: Fatima | H99: Tahoua
A100: V_0099 | B100: Ordinateur | C100: 91100 | D100: 15 | E100: =Tableau1[[#This Row],[Prix Unitaire]]*Tableau1[[#This Row],[Quantité]] -> 1366500 | F100: 2024-01-17 | G100: Ghousmane | H100: Agadez
A101: V_0100 | B101: Imprimante | C101: 37600 | D101: 7 | E101: =Tableau1[[#This Row],[Prix Unitaire]]*Tableau1[[#This Row],[Quantité]] -> 263200 | F101: 2024-04-28 | G101: Daouda | H101: Niamey
A102: V_0101 | B102: Ordinateur | C102: 64300 | D102: 17 | E102: =Tableau1[[#This Row],[Prix Unitaire]]*Tableau1[[#This Row],[Quantité]] -> 1093100 | F102: 2024-03-12 | G102: Fatima | H102: Zinder
A103: V_0102 | B103: Casque Audio | C103: 10900 | D103: 19 | E103: =Tableau1[[#This Row],[Prix Unitaire]]*Tableau1[[#This Row],[Quantité]] -> 207100 | F103: 2024-08-01 | G103: Maiga | H103: Maradi
A104: V_0103 | B104: Clavier | C104: 9300 | D104: 20 | E104: =Tableau1[[#This Row],[Prix Unitaire]]*Tableau1[[#This Row],[Quantité]] -> 186000 | F104: 2024-08-13 | G104: Djamila | H104: Niamey
A105: V_0104 | B105: Clavier | C105: 5000 | D105: 10 | E105: =Tableau1[[#This Row],[Prix Unitaire]]*Tableau1[[#This Row],[Quantité]] -> 50000 | F105: 2024-04-01 | G105: Loukmane | H105: Dosso
A106: V_0105 | B106: Tablette | C106: 73300 | D106: 8 | E106: =Tableau1[[#This Row],[Prix Unitaire]]*Tableau1[[#This Row],[Quantité]] -> 586400 | F106: 2024-06-24 | G106: Sanda | H106: Diffa
A107: V_0106 | B107: Souris | C107: 2900 | D107: 9 | E107: =Tableau1[[#This Row],[Prix Unitaire]]*Tableau1[[#This Row],[Quantité]] -> 26100 | F107: 2024-08-08 | G107: Balkissa | H107: Maradi
A108: V_0107 | B108: Ordinateur | C108: 107000 | D108: 19 | E108: =Tableau1[[#This Row],[Prix Unitaire]]*Tableau1[[#This Row],[Quantité]] -> 2033000 | F108: 2024-05-01 | G108: Djamila | H108: Tahoua
A109: V_0108 | B109: Tablette | C109: 63700 | D109: 18 | E109: =Tableau1[[#This Row],[Prix Unitaire]]*Tableau1[[#This Row],[Quantité]] -> 1146600 | F109: 2024-02-22 | G109: Sanda | H109: Agadez
A110: V_0109 | B110: Écran | C110: 12400 | D110: 12 | E110: =Tableau1[[#This Row],[Prix Unitaire]]*Tableau1[[#This Row],[Quantité]] -> 148800 | F110: 2024-07-08 | G110: Loukmane | H110: Niamey
A111: V_0110 | B111: Souris | C111: 4300 | D111: 11 | E111: =Tableau1[[#This Row],[Prix Unitaire]]*Tableau1[[#This Row],[Quantité]] -> 47300 | F111: 2024-02-24 | G111: Fatima | H111: Zinder
A112: V_0111 | B112: Souris | C112: 3600 | D112: 5 | E112: =Tableau1[[#This Row],[Prix Unitaire]]*Tableau1[[#This Row],[Quantité]] -> 18000 | F112: 2024-08-13 | G112: Ghousmane | H112: Maradi
A113: V_0112 | B113: Casque Audio | C113: 14600 | D113: 6 | E113: =Tableau1[[#This Row],[Prix Unitaire]]*Tableau1[[#This Row],[Quantité]] -> 87600 | F113: 2024-02-27 | G113: Daouda | H113: Niamey
A114: V_0113 | B114: Disque Dur | C114: 17100 | D114: 8 | E114: =Tableau1[[#This Row],[Prix Unitaire]]*Tableau1[[#This Row],[Quantité]] -> 136800 | F114: 2024-02-21 | G114: Fatima | H114: Dosso
A115: V_0114 | B115: Imprimante | C115: 25300 | D115: 5 | E115: =Tableau1[[#This Row],[Prix Unitaire]]*Tableau1[[#This Row],[Quantité]] -> 126500 | F115: 2024-04-02 | G115: Maiga | H115: Diffa
A116: V_0115 | B116: Écran | C116: 12900 | D116: 18 | E116: =Tableau1[[#This Row],[Prix Unitaire]]*Tableau1[[#This Row],[Quantité]] -> 232200 | F116: 2024-08-07 | G116: Djamila | H116: Maradi
A117: V_0116 | B117: Souris | C117: 3600 | D117: 18 | E117: =Tableau1[[#This Row],[Prix Unitaire]]*Tableau1[[#This Row],[Quantité]] -> 64800 | F117: 2024-07-08 | G117: Loukmane | H117: Tahoua
A118: V_0117 | B118: Disque Dur | C118: 8400 | D118: 13 | E118: =Tableau1[[#This Row],[Prix Unitaire]]*Tableau1[[#This Row],[Quantité]] -> 109200 | F118: 2024-03-21 | G118: Sanda | H118: Agadez
A119: V_0118 | B119: Imprimante | C119: 23000 | D119: 7 | E119: =Tableau1[[#This Row],[Prix Unitaire]]*Tableau1[[#This Row],[Quantité]] -> 161000 | F119: 2024-05-05 | G119: Balkissa | H119: Niamey
A120: V_0119 | B120: Clavier | C120: 3000 | D120: 15 | E120: =Tableau1[[#This Row],[Prix Unitaire]]*Tableau1[[#This Row],[Quantité]] -> 45000 | F120: 2024-04-12 | G120: Djamila | H120: Zinder
A121: V_0120 | B121: Clavier | C121: 3100 | D121: 18 | E121: =Tableau1[[#This Row],[Prix Unitaire]]*Tableau1[[#This Row],[Quantité]] -> 55800 | F121: 2024-07-19 | G121: Sanda | H121: Maradi
A122: V_0121 | B122: Imprimante | C122: 12600 | D122: 9 | E122: =Tableau1[[#This Row],[Prix Unitaire]]*Tableau1[[#This Row],[Quantité]] -> 113400 | F122: 2024-07-08 | G122: Loukmane | H122: Niamey
A123: V_0122 | B123: Souris | C123: 4800 | D123: 20 | E123: =Tableau1[[#This Row],[Prix Unitaire]]*Tableau1[[#This Row],[Quantité]] -> 96000 | F123: 2024-03-05 | G123: Fatima | H123: Dosso
A124: V_0123 | B124: Ordinateur | C124: 139400 | D124: 3 | E124: =Tableau1[[#This Row],[Prix Unitaire]]*Tableau1[[#This Row],[Quantité]] -> 418200 | F124: 2024-02-28 | G124: Ghousmane | H124: Diffa
A125: V_0124 | B125: Imprimante | C125: 48900 | D125: 19 | E125: =Tableau1[[#This Row],[Prix Unitaire]]*Tableau1[[#This Row],[Quantité]] -> 929100 | F125: 2024-03-30 | G125: Daouda | H125: Maradi
A126: V_0125 | B126: Disque Dur | C126: 10500 | D126: 16 | E126: =Tableau1[[#This Row],[Prix Unitaire]]*Tableau1[[#This Row],[Quantité]] -> 168000 | F126: 2024-07-05 | G126: Fatima | H126: Tahoua
A127: V_0126 | B127: Imprimante | C127: 27000 | D127: 10 | E127: =Tableau1[[#This Row],[Prix Unitaire]]*Tableau1[[#This Row],[Quantité]] -> 270000 | F127: 2024-01-17 | G127: Maiga | H127: Agadez
A128: V_0127 | B128: Ordinateur | C128: 71600 | D128: 7 | E128: =Tableau1[[#This Row],[Prix Unitaire]]*Tableau1[[#This Row],[Quantité]] -> 501200 | F128: 2024-07-18 | G128: Djamila | H128: Niamey
A129: V_0128 | B129: Smartphone | C129: 79000 | D129: 8 | E129: =Tableau1[[#This Row],[Prix Unitaire]]*Tableau1[[#This Row],[Quantité]] -> 632000 | F129: 2024-03-10 | G129: Loukmane | H129: Zinder
A130: V_0129 | B130: Chargeur | C130: 2300 | D130: 13 | E130: =Tableau1[[#This Row],[Prix Unitaire]]*Tableau1[[#This Row],[Quantité]] -> 29900 | F130: 2024-03-25 | G130: Sanda | H130: Maradi
A131: V_0130 | B131: Imprimante | C131: 38200 | D131: 11 | E131: =Tableau1[[#This Row],[Prix Unitaire]]*Tableau1[[#This Row],[Quantité]] -> 420200 | F131: 2024-06-08 | G131: Balkissa | H131: Niamey
A132: V_0131 | B132: Casque Audio | C132: 14700 | D132: 15 | E132: =Tableau1[[#This Row],[Prix Unitaire]]*Tableau1[[#This Row],[Quantité]] -> 220500 | F132: 2024-05-13 | G132: Djamila | H132: Dosso
A133: V_0132 | B133: Disque Dur | C133: 14100 | D133: 10 | E133: =Tableau1[[#This Row],[Prix Unitaire]]*Tableau1[[#This Row],[Quantité]] -> 141000 | F133: 2024-02-12 | G133: Sanda | H133: Diffa
A134: V_0133 | B134: Casque Audio | C134: 14200 | D134: 17 | E134: =Tableau1[[#This Row],[Prix Unitaire]]*Tableau1[[#This Row],[Quantité]] -> 241400 | F134: 2024-02-28 | G134: Loukmane | H134: Maradi
A135: V_0134 | B135: Écran | C135: 33800 | D135: 4 | E135: =Tableau1[[#This Row],[Prix Unitaire]]*Tableau1[[#This Row],[Quantité]] -> 135200 | F135: 2024-07-14 | G135: Fatima | H135: Tahoua
A136: V_0135 | B136: Écran | C136: 26300 | D136: 7 | E136: =Tableau1[[#This Row],[Prix Unitaire]]*Tableau1[[#This Row],[Quantité]] -> 184100 | F136: 2024-07-28 | G136: Ghousmane | H136: Agadez
A137: V_0136 | B137: Clavier | C137: 6000 | D137: 14 | E137: =Tableau1[[#This Row],[Prix Unitaire]]*Tableau1[[#This Row],[Quantité]] -> 84000 | F137: 2024-05-23 | G137: Daouda | H137: Niamey
A138: V_0137 | B138: Ordinateur | C138: 107600 | D138: 8 | E138: =Tableau1[[#This Row],[Prix Unitaire]]*Tableau1[[#This Row],[Quantité]] -> 860800 | F138: 2024-05-28 | G138: Fatima | H138: Zinder
A139: V_0138 | B139: Tablette | C139: 21600 | D139: 9 | E139: =Tableau1[[#This Row],[Prix Unitaire]]*Tableau1[[#This Row],[Quantité]] -> 194400 | F139: 2024-07-04 | G139: Maiga | H139: Maradi
A140: V_0139 | B140: Disque Dur | C140: 19900 | D140: 19 | E140: =Tableau1[[#This Row],[Prix Unitaire]]*Tableau1[[#This Row],[Quantité]] -> 378100 | F140: 2024-03-14 | G140: Djamila | H140: Niamey
A141: V_0140 | B141: Souris | C141: 2800 | D141: 5 | E141: =Tableau1[[#This Row],[Prix Unitaire]]*Tableau1[[#This Row],[Quantité]] -> 14000 | F141: 2024-05-25 | G141: Loukmane | H141: Dosso
A142: V_0141 | B142: Imprimante | C142: 26800 | D142: 8 | E142: =Tableau1[[#This Row],[Prix Unitaire]]*Tableau1[[#This Row],[Quantité]] -> 214400 | F142: 2024-04-11 | G142: Sanda | H142: Diffa
A143: V_0142 | B143: Souris | C143: 4600 | D143: 8 | E143: =Tableau1[[#This Row],[Prix Unitaire]]*Tableau1[[#This Row],[Quantité]] -> 36800 | F143: 2024-06-03 | G143: Balkissa | H143: Maradi
A144: V_0143 | B144: Écran | C144: 38100 | D144: 11 | E144: =Tableau1[[#This Row],[Prix Unitaire]]*Tableau1[[#This Row],[Quantité]] -> 419100 | F144: 2024-08-03 | G144: Djamila | H144: Tahoua
A145: V_0144 | B145: Casque Audio | C145: 24500 | D145: 16 | E145: =Tableau1[[#This Row],[Prix Unitaire]]*Tableau1[[#This Row],[Quantité]] -> 392000 | F145: 2024-06-03 | G145: Sanda | H145: Agadez
A146: V_0145 | B146: Écran | C146: 33500 | D146: 6 | E146: =Tableau1[[#This Row],[Prix Unitaire]]*Tableau1[[#This Row],[Quantité]] -> 201000 | F146: 2024-03-03 | G146: Loukmane | H146: Niamey
A147: V_0146 | B147: Clavier | C147: 4100 | D147: 5 | E147: =Tableau1[[#This Row],[Prix Unitaire]]*Tableau1[[#This Row],[Quantité]] -> 20500 | F147: 2024-03-03 | G147: Fatima | H147: Zinder
A148: V_0147 | B148: Disque Dur | C148: 17500 | D148: 6 | E148: =Tableau1[[#This Row],[Prix Unitaire]]*Tableau1[[#This Row],[Quantité]] -> 105000 | F148: 2024-06-18 | G148: Ghousmane | H148: Maradi
A149: V_0148 | B149: Disque Dur | C149: 6500 | D149: 17 | E149: =Tableau1[[#This Row],[Prix Unitaire]]*Tableau1[[#This Row],[Quantité]] -> 110500 | F149: 2024-02-01 | G149: Daouda | H149: Niamey
A150: V_0149 | B150: Ordinateur | C150: 135900 | D150: 3 | E150: =Tableau1[[#This Row],[Prix Unitaire]]*Tableau1[[#This Row],[Quantité]] -> 407700 | F150: 2024-04-21 | G150: Fatima | H150: Dosso
A151: V_0150 | B151: Ordinateur | C151: 128200 | D151: 1 | E151: =Tableau1[[#This Row],[Prix Unitaire]]*Tableau1[[#This Row],[Quantité]] -> 128200 | F151: 2024-03-19 | G151: Maiga | H151: Diffa
A152: V_0151 | B152: Souris | C152: 1800 | D152: 8 | E152: =Tableau1[[#This Row],[Prix Unitaire]]*Tableau1[[#This Row],[Quantité]] -> 14400 | F152: 2024-03-30 | G152: Djamila | H152: Maradi
A153: V_0152 | B153: Smartphone | C153: 45400 | D153: 1 | E153: =Tableau1[[#This Row],[Prix Unitaire]]*Tableau1[[#This Row],[Quantité]] -> 45400 | F153: 2024-01-01 | G153: Loukmane | H153: Tahoua
A154: V_0153 | B154: Imprimante | C154: 35800 | D154: 15 | E154: =Tableau1[[#This Row],[Prix Unitaire]]*Tableau1[[#This Row],[Quantité]] -> 537000 | F154: 2024-06-06 | G154: Sanda | H154: Agadez
A155: V_0154 | B155: Clavier | C155: 2700 | D155: 20 | E155: =Tableau1[[#This Row],[Prix Unitaire]]*Tableau1[[#This Row],[Quantité]] -> 54000 | F155: 2024-08-05 | G155: Balkissa | H155: Niamey
A156: V_0155 | B156: Chargeur | C156: 4000 | D156: 16 | E156: =Tableau1[[#This Row],[Prix Unitaire]]*Tableau1[[#This Row],[Quantité]] -> 64000 | F156: 2024-03-16 | G156: Djamila | H156: Zinder
A157: V_0156 | B157: Ordinateur | C157: 50600 | D157: 18 | E157: =Tableau1[[#This Row],[Prix Unitaire]]*Tableau1[[#This Row],[Quantité]] -> 910800 | F157: 2024-06-07 | G157: Sanda | H157: Maradi
A158: V_0157 | B158: Disque Dur | C158: 15500 | D158: 1 | E158: =Tableau1[[#This Row],[Prix Unitaire]]*Tableau1[[#This Row],[Quantité]] -> 15500 | F158: 2024-02-15 | G158: Loukmane | H158: Niamey
A159: V_0158 | B159: Ordinateur | C159: 104200 | D159: 9 | E159: =Tableau1[[#This Row],[Prix Unitaire]]*Tableau1[[#This Row],[Quantité]] -> 937800 | F159: 2024-04-04 | G159: Fatima | H159: Dosso
A160: V_0159 | B160: Disque Dur | C160: 12300 | D160: 1 | E160: =Tableau1[[#This Row],[Prix Unitaire]]*Tableau1[[#This Row],[Quantité]] -> 12300 | F160: 2024-07-06 | G160: Ghousmane | H160: Diffa
A161: V_0160 | B161: Disque Dur | C161: 16000 | D161: 6 | E161: =Tableau1[[#This Row],[Prix Unitaire]]*Tableau1[[#This Row],[Quantité]] -> 96000 | F161: 2024-03-30 | G161: Daouda | H161: Maradi
A162: V_0161 | B162: Smartphone | C162: 39800 | D162: 17 | E162: =Tableau1[[#This Row],[Prix Unitaire]]*Tableau1[[#This Row],[Quantité]] -> 676600 | F162: 2024-04-12 | G162: Fatima | H162: Tahoua
A163: V_0162 | B163: Tablette | C163: 44600 | D163: 7 | E163: =Tableau1[[#This Row],[Prix Unitaire]]*Tableau1[[#This Row],[Quantité]] -> 312200 | F163: 2024-08-03 | G163: Maiga | H163: Agadez
A164: V_0163 | B164: Chargeur | C164: 4300 | D164: 9 | E164: =Tableau1[[#This Row],[Prix Unitaire]]*Tableau1[[#This Row],[Quantité]] -> 38700 | F164: 2024-08-10 | G164: Djamila | H164: Niamey
A165: V_0164 | B165: Clavier | C165: 5400 | D165: 13 | E165: =Tableau1[[#This Row],[Prix Unitaire]]*Tableau1[[#This Row],[Quantité]] -> 70200 | F165: 2024-04-01 | G165: Loukmane | H165: Zinder
A166: V_0165 | B166: Smartphone | C166: 68200 | D166: 13 | E166: =Tableau1[[#This Row],[Prix Unitaire]]*Tableau1[[#This Row],[Quantité]] -> 886600 | F166: 2024-05-18 | G166: Sanda | H166: Maradi
A167: V_0166 | B167: Écran | C167: 38900 | D167: 8 | E167: =Tableau1[[#This Row],[Prix Unitaire]]*Tableau1[[#This Row],[Quantité]] -> 311200 | F167: 2024-07-29 | G167: Balkissa | H167: Niamey
A168: V_0167 | B168: Imprimante | C168: 25300 | D168: 3 | E168: =Tableau1[[#This Row],[Prix Unitaire]]*Tableau1[[#This Row],[Quantité]] -> 75900 | F168: 2024-08-11 | G168: Djamila | H168: Dosso
A169: V_0168 | B169: Ordinateur | C169: 59500 | D169: 13 | E169: =Tableau1[[#This Row],[Prix Unitaire]]*Tableau1[[#This Row],[Quantité]] -> 773500 | F169: 2024-03-27 | G169: Sanda | H169: Diffa
A170: V_0169 | B170: Souris | C170: 3400 | D170: 18 | E170: =Tableau1[[#This Row],[Prix Unitaire]]*Tableau1[[#This Row],[Quantité]] -> 61200 | F170: 2024-07-14 | G170: Loukmane | H170: Maradi
A171: V_0170 | B171: Écran | C171: 12800 | D171: 1 | E171: =Tableau1[[#This Row],[Prix Unitaire]]*Tableau1[[#This Row],[Quantité]] -> 12800 | F171: 2024-02-16 | G171: Fatima | H171: Tahoua
A172: V_0171 | B172: Tablette | C172: 28400 | D172: 16 | E172: =Tableau1[[#This Row],[Prix Unitaire]]*Tableau1[[#This Row],[Quantité]] -> 454400 | F172: 2024-03-22 | G172: Ghousmane | H172: Agadez
A173: V_0172 | B173: Souris | C173: 3100 | D173: 19 | E173: =Tableau1[[#This Row],[Prix Unitaire]]*Tableau1[[#This Row],[Quantité]] -> 58900 | F173: 2024-04-10 | G173: Daouda | H173: Niamey
A174: V_0173 | B174: Smartphone | C174: 84000 | D174: 2 | E174: =Tableau1[[#This Row],[Prix Unitaire]]*Tableau1[[#This Row],[Quantité]] -> 168000 | F174: 2024-07-02 | G174: Fatima | H174: Zinder
A175: V_0174 | B175: Imprimante | C175: 20800 | D175: 19 | E175: =Tableau1[[#This Row],[Prix Unitaire]]*Tableau1[[#This Row],[Quantité]] -> 395200 | F175: 2024-05-24 | G175: Maiga | H175: Maradi
A176: V_0175 | B176: Écran | C176: 23800 | D176: 2 | E176: =Tableau1[[#This Row],[Prix Unitaire]]*Tableau1[[#This Row],[Quantité]] -> 47600 | F176: 2024-08-11 | G176: Djamila | H176: Niamey
A177: V_0176 | B177: Smartphone | C177: 100000 | D177: 9 | E177: =Tableau1[[#This Row],[Prix Unitaire]]*Tableau1[[#This Row],[Quantité]] -> 900000 | F177: 2024-06-16 | G177: Loukmane | H177: Dosso
A178: V_0177 | B178: Disque Dur | C178: 19400 | D178: 2 | E178: =Tableau1[[#This Row],[Prix Unitaire]]*Tableau1[[#This Row],[Quantité]] -> 38800 | F178: 2024-01-04 | G178: Sanda | H178: Diffa
A179: V_0178 | B179: Tablette | C179: 52200 | D179: 1 | E179: =Tableau1[[#This Row],[Prix Unitaire]]*Tableau1[[#This Row],[Quantité]] -> 52200 | F179: 2024-07-19 | G179: Balkissa | H179: Maradi
A180: V_0179 | B180: Imprimante | C180: 40000 | D180: 5 | E180: =Tableau1[[#This Row],[Prix Unitaire]]*Tableau1[[#This Row],[Quantité]] -> 200000 | F180: 2024-08-08 | G180: Djamila | H180: Tahoua
A181: V_0180 | B181: Souris | C181: 1400 | D181: 10 | E181: =Tableau1[[#This Row],[Prix Unitaire]]*Tableau1[[#This Row],[Quantité]] -> 14000 | F181: 2024-03-24 | G181: Sanda | H181: Agadez
A182: V_0181 | B182: Tablette | C182: 77700 | D182: 8 | E182: =Tableau1[[#This Row],[Prix Unitaire]]*Tableau1[[#This Row],[Quantité]] -> 621600 | F182: 2024-04-10 | G182: Loukmane | H182: Niamey
A183: V_0182 | B183: Chargeur | C183: 3400 | D183: 18 | E183: =Tableau1[[#This Row],[Prix Unitaire]]*Tableau1[[#This Row],[Quantité]] -> 61200 | F183: 2024-01-08 | G183: Fatima | H183: Zinder
A184: V_0183 | B184: Clavier | C184: 6900 | D184: 5 | E184: =Tableau1[[#This Row],[Prix Unitaire]]*Tableau1[[#This Row],[Quantité]] -> 34500 | F184: 2024-08-11 | G184: Ghousmane | H184: Maradi
A185: V_0184 | B185: Smartphone | C185: 81200 | D185: 12 | E185: =Tableau1[[#This Row],[Prix Unitaire]]*Tableau1[[#This Row],[Quantité]] -> 974400 | F185: 2024-07-17 | G185: Daouda | H185: Niamey
A186: V_0185 | B186: Ordinateur | C186: 60000 | D186: 14 | E186: =Tableau1[[#This Row],[Prix Unitaire]]*Tableau1[[#This Row],[Quantité]] -> 840000 | F186: 2024-06-29 | G186: Fatima | H186: Dosso
A187: V_0186 | B187: Imprimante | C187: 13800 | D187: 11 | E187: =Tableau1[[#This Row],[Prix Unitaire]]*Tableau1[[#This Row],[Quantité]] -> 151800 | F187: 2024-08-10 | G187: Maiga | H187: Diffa
A188: V_0187 | B188: Chargeur | C188: 4900 | D188: 20 | E188: =Tableau1[[#This Row],[Prix Unitaire]]*Tableau1[[#This Row],[Quantité]] -> 98000 | F188: 2024-03-29 | G188: Djamila | H188: Maradi
A189: V_0188 | B189: Souris | C189: 3000 | D189: 1 | E189: =Tableau1[[#This Row],[Prix Unitaire]]*Tableau1[[#This Row],[Quantité]] -> 3000 | F189: 2024-04-13 | G189: Loukmane | H189: Tahoua
A190: V_0189 | B190: Casque Audio | C190: 25000 | D190: 15 | E190: =Tableau1[[#This Row],[Prix Unitaire]]*Tableau1[[#This Row],[Quantité]] -> 375000 | F190: 2024-08-15 | G190: Sanda | H190: Agadez
A191: V_0190 | B191: Écran | C191: 21600 | D191: 12 | E191: =Tableau1[[#This Row],[Prix Unitaire]]*Tableau1[[#This Row],[Quantité]] -> 259200 | F191: 2024-02-18 | G191: Balkissa | H191: Niamey
A192: V_0191 | B192: Disque Dur | C192: 14600 | D192: 14 | E192: =Tableau1[[#This Row],[Prix Unitaire]]*Tableau1[[#This Row],[Quantité]] -> 204400 | F192: 2024-02-10 | G192: Djamila | H192: Zinder
A193: V_0192 | B193: Tablette | C193: 79900 | D193: 13 | E193: =Tableau1[[#This Row],[Prix Unitaire]]*Tableau1[[#This Row],[Quantité]] -> 1038700 | F193: 2024-06-03 | G193: Sanda | H193: Maradi
A194: V_0193 | B194: Smartphone | C194: 93300 | D194: 10 | E194: =Tableau1[[#This Row],[Prix Unitaire]]*Tableau1[[#This Row],[Quantité]] -> 933000 | F194: 2024-05-31 | G194: Loukmane | H194: Niamey
A195: V_0194 | B195: Imprimante | C195: 46500 | D195: 3 | E195: =Tableau1[[#This Row],[Prix Unitaire]]*Tableau1[[#This Row],[Quantité]] -> 139500 | F195: 2024-07-23 | G195: Fatima | H195: Dosso
A196: V_0195 | B196: Smartphone | C196: 57400 | D196: 5 | E196: =Tableau1[[#This Row],[Prix Unitaire]]*Tableau1[[#This Row],[Quantité]] -> 287000 | F196: 2024-07-03 | G196: Ghousmane | H196: Diffa
A197: V_0196 | B197: Souris | C197: 5000 | D197: 5 | E197: =Tableau1[[#This Row],[Prix Unitaire]]*Tableau1[[#This Row],[Quantité]] -> 25000 | F197: 2024-06-26 | G197: Daouda | H197: Maradi
A198: V_0197 | B198: Souris | C198: 3000 | D198: 12 | E198: =Tableau1[[#This Row],[Prix Unitaire]]*Tableau1[[#This Row],[Quantité]] -> 36000 | F198: 2024-02-04 | G198: Fatima | H198: Tahoua
A199: V_0198 | B199: Smartphone | C199: 39300 | D199: 1 | E199: =Tableau1[[#This Row],[Prix Unitaire]]*Tableau1[[#This Row],[Quantité]] -> 39300 | F199: 2024-04-27 | G199: Maiga | H199: Agadez
A200: V_0199 | B200: Casque Audio | C200: 16300 | D200: 12 | E200: =Tableau1[[#This Row],[Prix Unitaire]]*Tableau1[[#This Row],[Quantité]] -> 195600 | F200: 2024-04-21 | G200: Djamila | H200: Niamey
... 801 more rows
